fUSD/lending_fUSD_20251115
["ID","MTS","AMOUNT","RATE_DAILY","PERIOD"]
[394056152,1763234905379,291.48841586,0.00041422,120]
[394056153,1763234905457,1252.48703172,0.00041422,120]
[394056154,1763234906000,567.6044392,0.00041422,120]
[394056155,1763234906080,281.72083642,0.00041422,30]
[394056156,1763234906259,248.42337563,0.00041422,30]
[394056157,1763234906366,300.10883934,0.00041422,120]
[394056158,1763234906432,467.59369045,0.00041422,30]
[394056159,1763234906489,236.47788881,0.00041422,90]
[394056160,1763234906619,652.39151704,0.00041422,30]
[394056161,1763234906805,214.98817654,0.00041422,31]
[394056162,1763234907087,421.95070495,0.00041422,120]
[394056163,1763234907538,453.33149402,0.00041422,120]
[394056165,1763234909008,661.32971437,0.00041422,120]
[394056166,1763234909082,744.89451306,0.00041422,120]
[394056167,1763234909761,591.84029968,0.000246,120]
[394056168,1763234909990,455.58621668,0.00041422,30]
[394056169,1763234910557,249.85141085,0.00041422,120]
[394056170,1763234910772,244.94926127,0.00041422,120]
[394056171,1763234911491,297.10238434,0.00041422,120]
[394056172,1763234912615,361.26616508,0.00041422,120]
[394056173,1763234913300,762.75344494,0.00041422,120]
[394056174,1763234913597,157.87655095,0.00041422,120]
[394056176,1763234914815,276.70520798,0.00041422,30]
[394056177,1763234916553,2297.42886975,0.00014999,2]
[394056178,1763234917161,365.42475493,0.00041422,30]
[394056180,1763234917565,368.99312432,0.00041422,120]
[394056181,1763234917644,161.9414331,0.0003,120]
[394056182,1763234918205,205.28831262,0.00041422,30]
[394056183,1763234918559,217.14316415,0.00041422,60]
[394056184,1763234919296,333.56445532,0.00041422,48]
[394056185,1763234920577,195.45060916,0.00041422,120]
[394056186,1763234921101,498.09985082,0.00041422,60]
[394056187,1763234921164,228.68451713,0.00041422,120]
[394056188,1763234921508,1323.10214619,0.00041422,120]
[394056189,1763234921595,538.77458426,0.00041422,30]
[394056190,1763234921642,310.1818959,0.0002465,120]
[394056191,1763234921685,666.79991162,0.00041422,30]
[394056192,1763234921738,559.17506354,0.00041422,30]
[394056193,1763234922428,365.56618622,0.00041422,120]
[394056194,1763234922823,369.99581166,0.00041422,120]
[394056195,1763234922882,262.96340962,0.00041422,120]
[394056196,1763234922931,215.99768672,0.00025,120]
[394056197,1763234923442,499.72008266,0.0003,120]
[394056198,1763234923587,416.15276054,0.00041422,120]
[394056199,1763234923895,404.55737109,0.00041422,30]
[394056200,1763234923995,492.85781943,0.00041422,60]
[394056202,1763234924750,185.39354531,0.00041422,120]
[394056203,1763234924992,168.71570683,0.00041422,120]
[394056204,1763234925041,199.64943433,0.00041422,120]
[394056205,1763234925626,270.72204235,0.00027,120]
[394056206,1763234925782,156.89717617,0.0003,120]
[394056207,1763234925935,161.2135472,0.00041422,120]
[394056208,1763234926097,321.10499603,0.00041422,120]
[394056209,1763234926138,161.16385279,0.00041422,120]
[394056210,1763234945543,189.68781957,0.00041422,120]
[394056211,1763234945583,250.0,0.00041422,120]
[394056213,1763234945623,500.0,0.00041422,120]
[394056214,1763234945666,250.0,0.00041422,120]
[394056215,1763234945706,151.0,0.00041422,120]
[394056216,1763234945748,220.0,0.00041422,120]
[394056217,1763234945787,151.0,0.00041422,120]
[394056218,1763234946102,414.0,0.00041422,120]
[394056219,1763234946168,250.0,0.00041422,120]
[394056220,1763234946421,250.0,0.00041422,120]
[394056221,1763234946466,151.0,0.00041422,120]
[394056222,1763234946515,220.0,0.00041422,120]
[394056223,1763234946562,151.0,0.00041422,120]
[394056224,1763234946725,429.318,0.00041422,120]
[394056225,1763234946780,250.0,0.00041422,120]
[394056226,1763234946842,151.0,0.00041422,120]
[394056227,1763234946890,250.0,0.00041422,120]
[394056228,1763234946932,220.0,0.00041422,120]
[394056229,1763234946976,151.0,0.00041422,120]
[394056230,1763234947369,250.0,0.00041422,120]
[394056231,1763234947438,151.0,0.00041422,120]
[394056232,1763234947483,250.0,0.00041422,120]
[394056233,1763234947526,151.0,0.00041422,120]
[394056234,1763234947820,445.202766,0.00041422,120]
[394056235,1763234947962,250.0,0.00041422,120]
[394056236,1763234948040,250.0,0.00041422,120]
[394056237,1763234948081,151.0,0.00041422,120]
[394056238,1763234948427,461.67526834,0.00041422,120]
[394056239,1763234948569,151.0,0.00041422,120]
[394056240,1763234948613,250.0,0.00041422,120]
[394056241,1763234948665,250.0,0.00041422,120]
[394056242,1763234948716,151.0,0.00041422,120]
[394056243,1763234949026,478.75725327,0.00041422,120]
[394056244,1763234949205,250.0,0.00041422,120]
[394056245,1763234949254,250.0,0.00041422,120]
[394056246,1763234949324,151.0,0.00041422,120]
[394056247,1763234949364,151.0,0.00041422,120]
[394056248,1763234949616,496.47127164,0.00041422,120]
[394056249,1763234949805,250.0,0.00041422,120]
[394056250,1763234949870,250.0,0.00041422,120]
[394056251,1763234949913,151.0,0.00041422,120]
[394056252,1763234949955,151.0,0.00041422,120]
[394056253,1763234950234,514.84070869,0.00041422,120]
[394056254,1763234950422,250.0,0.00041422,120]
[394056255,1763234950462,250.0,0.00041422,120]
[394056256,1763234950507,151.0,0.00041422,120]
[394056257,1763234950578,151.0,0.00041422,120]
[394056258,1763234950616,250.0,0.00041422,120]
[394056259,1763234950824,533.88981491,0.00041422,120]
[394056260,1763234950872,151.0,0.00041422,120]
[394056261,1763234950916,151.0,0.00041422,120]
[394056262,1763234951016,250.0,0.00041422,120]
[394056263,1763234951089,250.0,0.00041422,120]
[394056264,1763234951128,151.0,0.00041422,120]
[394056265,1763234951170,151.0,0.00041422,120]
[394056266,1763234951207,250.0,0.00041422,120]
[394056267,1763234951321,250.0,0.00041422,120]
[394056268,1763234951410,553.64373807,0.00041422,120]
[394056269,1763234951634,151.0,0.00041422,120]
[394056270,1763234951674,151.0,0.00041422,120]
[394056271,1763234951723,250.0,0.00041422,120]
[394056272,1763234951762,250.0,0.00041422,120]
[394056273,1763234951801,151.0,0.00041422,120]
[394056274,1763234951846,151.0,0.00041422,120]
[394056275,1763234951892,250.0,0.00041422,120]
[394056276,1763234951937,250.0,0.00041422,120]
[394056277,1763234952005,574.12855637,0.00041422,120]
[394056278,1763234952092,151.0,0.00041422,120]
[394056279,1763234952220,250.0,0.00041422,120]
[394056280,1763234952302,250.0,0.00041422,120]
[394056281,1763234952362,151.0,0.00041422,120]
[394056282,1763234952399,250.0,0.00041422,120]
[394056283,1763234952491,151.0,0.00041422,120]
[394056284,1763234952527,250.0,0.00041422,120]
[394056285,1763234952598,595.37131296,0.00041422,120]
[394056286,1763234952682,151.0,0.00041422,120]
[394056287,1763234952812,250.0,0.00041422,120]
[394056288,1763234952952,250.0,0.00041422,120]
[394056289,1763234952996,250.0,0.00041422,120]
[394056290,1763234953037,151.0,0.00041422,120]
[394056291,1763234953112,250.0,0.00041422,120]
[394056292,1763234953151,151.0,0.00041422,120]
[394056293,1763234953217,617.40005154,0.00041422,120]
[394056294,1763234953269,151.0,0.00041422,120]
[394056295,1763234953436,250.0,0.00041422,120]
[394056296,1763234953557,250.0,0.00041422,120]
[394056297,1763234953610,151.0,0.00041422,120]
[394056298,1763234953727,151.0,0.00041422,120]
[394056299,1763234953768,250.0,0.00041422,120]
[394056300,1763234953819,640.24385345,0.00041422,120]
[394056301,1763234953883,151.0,0.00041422,120]
[394056302,1763234954059,250.0,0.00041422,120]
[394056303,1763234954100,250.0,0.00041422,120]
[394056304,1763234954163,151.0,0.00041422,120]
[394056305,1763234954212,250.0,0.00041422,120]
[394056306,1763234954330,151.0,0.00041422,120]
[394056307,1763234954422,250.0,0.00041422,120]
[394056308,1763234954473,663.93287602,0.00041422,120]
[394056309,1763234954514,151.0,0.00041422,120]
[394056310,1763234954552,624.54954423,0.00041422,120]
[394056311,1763234954653,250.0,0.00041422,120]
[394056312,1763234954706,250.0,0.00041422,120]
[394056313,1763234954772,250.0,0.00041422,120]
[394056314,1763234954828,151.0,0.00041422,120]
[394056315,1763234954951,151.0,0.00041422,120]
[394056316,1763234955014,250.0,0.00041422,120]
[394056317,1763234955092,688.49839244,0.00041422,120]
[394056318,1763234955132,151.0,0.00041422,120]
[394056319,1763234955248,250.0,0.00041422,120]
[394056320,1763234955306,250.0,0.00041422,120]
[394056321,1763234955390,250.0,0.00041422,120]
[394056322,1763234955427,151.0,0.00041422,120]
[394056323,1763234955588,151.0,0.00041422,120]
[394056324,1763234955631,250.0,0.00041422,120]
[394056325,1763234955707,151.0,0.00041422,120]
[394056326,1763234955748,713.97283296,0.00041422,120]
[394056327,1763234955852,250.0,0.00041422,120]
[394056328,1763234955915,250.0,0.00041422,120]
[394056329,1763234955990,250.0,0.00041422,120]
[394056330,1763234956197,151.0,0.00041422,120]
[394056331,1763234956243,250.0,0.00041422,120]
[394056332,1763234956343,740.38982778,0.00041422,120]
[394056333,1763234956384,151.0,0.00041422,120]
[394056334,1763234956594,250.0,0.00041422,120]
[394056335,1763234956643,250.0,0.00041422,120]
[394056336,1763234956688,151.0,0.00041422,120]
[394056337,1763234956729,250.0,0.00041422,120]
[394056338,1763234956853,151.0,0.00041422,120]
[394056339,1763234956900,250.0,0.00041422,120]
[394056340,1763234956946,151.0,0.00041422,120]
[394056341,1763234956985,767.7842514,0.00041422,120]
[394056342,1763234957036,250.0,0.00041422,120]
[394056343,1763234957106,250.0,0.00041422,120]
[394056344,1763234957359,250.0,0.00041422,120]
[394056345,1763234957405,151.0,0.00041422,120]
[394056346,1763234957560,796.19226871,0.00041422,120]
[394056347,1763234957610,151.0,0.00041422,120]
[394056348,1763234957696,250.0,0.00041422,120]
[394056349,1763234957758,250.0,0.00041422,120]
[394056350,1763234957920,151.0,0.00041422,120]
[394056351,1763234957963,250.0,0.00041422,120]
[394056352,1763234958144,796.19226871,0.00041422,120]
[394056353,1763234958182,151.0,0.00041422,120]
[394056354,1763234958350,250.0,0.00041422,120]
[394056355,1763234958514,151.0,0.00041422,120]
[394056356,1763234958564,250.0,0.00041422,120]
[394056357,1763234958762,151.0,0.00041422,120]
[394056358,1763234958959,250.0,0.00041422,120]
[394056359,1763234959142,250.0,0.00041422,120]
[394056360,1763234959354,151.0,0.00041422,120]
[394056361,1763234959537,250.0,0.00041422,120]
[394056362,1763234959785,250.0,0.00041422,120]
[394056363,1763234959849,500.0,0.00041422,120]
[394056364,1763234959949,151.0,0.00041422,120]
[394056365,1763234960050,151.0,0.00041422,120]
[394056366,1763234960158,250.0,0.00041422,120]
[394056367,1763234960396,250.0,0.00041422,120]
[394056368,1763234960444,500.0,0.00041422,120]
[394056369,1763234960534,151.0,0.00041422,120]
[394056370,1763234960674,533.97301374,0.00041422,120]
[394056371,1763234960720,151.0,0.00041422,120]
[394056372,1763234960776,250.0,0.00041422,120]
[394056373,1763234960830,200.0,0.00041422,31]
[394056374,1763234960988,250.0,0.00041422,120]
[394056375,1763234961042,500.0,0.00041422,120]
[394056376,1763234961140,151.0,0.00041422,120]
[394056377,1763234961264,151.0,0.00041422,120]
[394056378,1763234961390,250.0,0.00041422,120]
[394056379,1763234961434,207.4,0.00041422,31]
[394056380,1763234961615,250.0,0.00041422,120]
[394056381,1763234961664,500.0,0.00041422,120]
[394056382,1763234961765,151.0,0.00041422,120]
[394056383,1763234962024,250.0,0.00041422,120]
[394056384,1763234962071,215.0738,0.00041422,31]
[394056385,1763234962210,250.0,0.00041422,120]
[394056386,1763234962289,500.0,0.00041422,120]
[394056387,1763234962378,151.0,0.00041422,120]
[394056388,1763234962637,223.0315306,0.00041422,31]
[394056389,1763234962826,250.0,0.00041422,120]
[394056390,1763234962919,500.0,0.00041422,120]
[394056391,1763234963246,231.28369723,0.00041422,31]
[394056392,1763234963465,250.0,0.00041422,120]
[394056393,1763234963541,500.0,0.00041422,120]
[394056394,1763234963867,239.84119403,0.00041422,31]
[394056395,1763234964145,500.0,0.00041422,120]
[394056396,1763234964200,500.0,0.00041422,120]
[394056397,1763234964480,248.71531821,0.00041422,31]
[394056398,1763234964737,500.0,0.00041422,120]
[394056399,1763234964836,500.0,0.00041422,120]
[394056400,1763234965090,257.91778498,0.00041422,31]
[394056401,1763234965136,160.0,0.00041422,120]
[394056402,1763234965452,500.0,0.00041422,120]
[394056403,1763234965718,267.46074303,0.00041422,31]
[394056404,1763234966088,500.0,0.00041422,120]
[394056405,1763234966329,277.35679052,0.00041422,31]
[394056406,1763234966577,250.0,0.00041422,120]
[394056407,1763234967003,500.0,0.00041422,120]
[394056408,1763234967070,287.61899177,0.00041422,31]
[394056409,1763234967169,250.0,0.00041422,120]
[394056410,1763234967341,500.0,0.00041422,120]
[394056411,1763234967537,298.26089446,0.00041422,31]
[394056412,1763234967799,250.0,0.00041422,120]
[394056413,1763234967848,151.0,0.00041422,120]
[394056414,1763234967935,500.0,0.00041422,120]
[394056415,1763234968138,309.29654756,0.00041422,31]
[394056416,1763234968167,-250.0,0.00015781,2]
[394056417,1763234968188,-195.0,0.00015781,2]
[394056418,1763234968210,-166.66,0.00015962,2]
[394056419,1763234968232,-1221.91,0.00016076,2]
[394056420,1763234968254,-195.0,0.0001611,2]
[394056421,1763234968419,250.0,0.00041422,120]
[394056422,1763234968565,500.0,0.00041422,120]
[394056423,1763234968753,320.74051982,0.00041422,31]
[394056424,1763234968927,151.0,0.00041422,120]
[394056425,1763234969046,250.0,0.00041422,120]
[394056426,1763234969196,500.0,0.00041422,120]
[394056427,1763234969371,332.60791905,0.00041422,31]
[394056428,1763234969483,160.0,0.00041422,120]
[394056429,1763234969614,151.0,0.00041422,120]
[394056430,1763234969661,250.0,0.00041422,120]
[394056431,1763234969819,500.0,0.00041422,120]
[394056432,1763234969972,344.91441206,0.00041422,31]
[394056433,1763234970128,160.0,0.00041422,120]
[394056434,1763234970258,250.0,0.00041422,120]
[394056435,1763234970313,151.0,0.00041422,120]
[394056436,1763234970415,500.0,0.00041422,120]
[394056437,1763234970570,357.6762453,0.00041422,31]
[394056438,1763234970730,160.0,0.00041422,120]
[394056439,1763234970870,250.0,0.00041422,120]
[394056440,1763234970951,151.0,0.00041422,120]
[394056441,1763234971031,500.0,0.00041422,120]
[394056442,1763234971185,370.91026638,0.00041422,31]
[394056443,1763234971335,160.0,0.00041422,120]
[394056444,1763234971478,250.0,0.00041422,120]
[394056445,1763234971648,500.0,0.00041422,120]
[394056446,1763234971953,384.63394623,0.00041422,31]
[394056447,1763234971993,160.0,0.00041422,120]
[394056448,1763234972033,151.0,0.00041422,120]
[394056449,1763234972080,250.0,0.00041422,120]
[394056450,1763234972311,500.0,0.00041422,120]
[394056451,1763234972575,160.0,0.00041422,120]
[394056452,1763234972614,384.63394623,0.00041422,31]
[394056453,1763234972667,151.0,0.00041422,120]
[394056454,1763234972716,250.0,0.00041422,120]
[394056455,1763234972926,500.0,0.00041422,120]
[394056456,1763234973177,160.0,0.00041422,120]
[394056457,1763234973269,151.0,0.00041422,120]
[394056458,1763234973310,250.0,0.00041422,120]
[394056459,1763234973545,500.0,0.00041422,120]
[394056460,1763234973879,151.0,0.00041422,120]
[394056461,1763234973924,250.0,0.00041422,120]
[394056462,1763234974131,500.0,0.00041422,120]
[394056463,1763234974481,151.0,0.00041422,120]
[394056464,1763234974521,250.0,0.00041422,120]
[394056465,1763234974740,500.0,0.00041422,120]
[394056466,1763234975091,250.0,0.00041422,120]
[394056467,1763234975131,151.0,0.00041422,120]
[394056468,1763234975331,500.0,0.00041422,120]
[394056469,1763234975696,250.0,0.00041422,120]
[394056470,1763234975739,151.0,0.00041422,120]
[394056471,1763234975805,151.0,0.00041422,120]
[394056472,1763234975945,500.0,0.00041422,120]
[394056473,1763234976226,500.0,0.00041422,120]
[394056474,1763234976290,250.0,0.00041422,120]
[394056475,1763234976329,151.0,0.00041422,120]
[394056476,1763234976507,151.0,0.00041422,120]
[394056477,1763234976825,500.0,0.00041422,120]
[394056478,1763234977257,151.0,0.00041422,120]
[394056479,1763234977296,250.0,0.00041422,120]
[394056480,1763234977332,151.0,0.00041422,120]
[394056481,1763234977501,151.0,0.00041422,120]
[394056482,1763234977635,250.0,0.00041422,120]
[394056483,1763234977709,151.0,0.00041422,120]
[394056484,1763234977915,500.0,0.00041422,120]
[394056485,1763234978114,151.0,0.00041422,120]
[394056486,1763234978248,250.0,0.00041422,120]
[394056487,1763234978555,500.0,0.00041422,120]
[394056488,1763234978723,151.0,0.00041422,120]
[394056489,1763234979175,500.0,0.00041422,120]
[394056490,1763234979318,151.0,0.00041422,120]
[394056491,1763234979779,500.0,0.00041422,120]
[394056492,1763234979993,151.0,0.00041422,120]
[394056493,1763234980377,500.0,0.00041422,120]
[394056494,1763234980583,151.0,0.00041422,120]
[394056495,1763234980980,500.0,0.00041422,120]
[394056496,1763234981613,500.0,0.00041422,120]
[394056497,1763234982204,500.0,0.00041422,120]
[394056498,1763234982807,500.0,0.00041422,120]
[394056499,1763234983658,151.0,0.00041422,120]
[394056500,1763234983732,500.0,0.00041422,120]
[394056501,1763234984309,151.0,0.00041422,120]
[394056502,1763234984351,500.0,0.00041422,120]
[394056503,1763234984960,151.0,0.00041422,120]
[394056504,1763234985002,500.0,0.00041422,120]
[394056505,1763234985609,500.0,0.00041422,120]
[394056506,1763234986017,151.0,0.00041422,120]
[394056507,1763234986204,500.0,0.00041422,120]
[394056508,1763234986654,151.0,0.00041422,120]
[394056509,1763234986843,500.0,0.00041422,120]
[394056510,1763234987252,151.0,0.00041422,120]
[394056511,1763234987453,500.0,0.00041422,120]
[394056512,1763234987885,151.0,0.00041422,120]
[394056513,1763234988664,151.0,0.00041422,120]
[394056514,1763234989265,151.0,0.00041422,120]
[394056515,1763234989871,151.0,0.00041422,120]
[394056516,1763234990470,151.0,0.00041422,120]
[394056517,1763234991071,151.0,0.00041422,120]
[394056518,1763234991664,151.0,0.00041422,120]
[394056519,1763234992269,151.0,0.00041422,120]
[394056520,1763234992889,151.0,0.00041422,120]
[394056521,1763234993464,250.0,0.00041422,120]
[394056522,1763234993508,151.0,0.00041422,120]
[394056523,1763234994063,250.0,0.00041422,120]
[394056524,1763234994108,151.0,0.00041422,120]
[394056525,1763234994677,250.0,0.00041422,120]
[394056526,1763234994726,151.0,0.00041422,120]
[394056527,1763234995265,250.0,0.00041422,120]
[394056528,1763234995312,151.0,0.00041422,120]
[394056529,1763234995926,250.0,0.00041422,120]
[394056530,1763234995974,151.0,0.00041422,120]
[394056531,1763234996530,250.0,0.00041422,120]
[394056532,1763234997147,250.0,0.00041422,120]
[394056533,1763234998129,250.0,0.00041422,120]
[394056534,1763234998345,250.0,0.00041422,120]
[394056535,1763234999098,250.0,0.00041422,120]
[394056536,1763235000197,250.0,0.00041422,120]
[394056537,1763235000950,250.0,0.00041422,120]
[394056538,1763235001556,250.0,0.00041422,120]
[394056539,1763235002214,250.0,0.00041422,120]
[394056540,1763235002845,250.0,0.00041422,120]
[394056541,1763235003462,250.0,0.00041422,120]
[394056542,1763235004084,250.0,0.00041422,120]
[394056543,1763235004721,250.0,0.00041422,120]
[394056544,1763235005332,250.0,0.00041422,120]
[394056545,1763235005934,250.0,0.00041422,120]
[394056546,1763235008953,250.0,0.00041422,120]
[394056547,1763235009579,250.0,0.00041422,120]
[394056548,1763235010214,250.0,0.00041422,120]
[394056549,1763235010887,250.0,0.00041422,120]
[394056550,1763235011495,250.0,0.00041422,120]
[394056551,1763235012153,250.0,0.00041422,120]
[394056552,1763235012786,250.0,0.00041422,120]
[394056553,1763235013411,250.0,0.00041422,120]
[394056554,1763235014086,250.0,0.00041422,120]
[394056555,1763235014705,250.0,0.00041422,120]
[394056556,1763235015354,250.0,0.00041422,120]
[394056557,1763235015962,250.0,0.00041422,120]
[394056558,1763235016570,250.0,0.00041422,120]
[394056559,1763235017181,250.0,0.00041422,120]
[394056560,1763235017819,250.0,0.00041422,120]
[394056561,1763235018478,250.0,0.00041422,120]
[394056562,1763235019135,250.0,0.00041422,120]
[394056563,1763235019827,250.0,0.00041422,120]
[394056564,1763235020466,250.0,0.00041422,120]
[394056565,1763235021746,250.0,0.00041422,120]
[394056566,1763235027443,156.16431395,0.00041422,120]
[394056567,1763235030529,250.0,0.00041422,120]
[394056568,1763235031151,250.0,0.00041422,120]
[394056569,1763235031883,250.0,0.00041422,120]
[394056577,1763235032187,-166.66,0.00016298,2]
[394056578,1763235032196,-200.0,0.00016331,2]
[394056579,1763235032206,-150.0,0.0001636,2]
[394056580,1763235032215,-150.0,0.00016374,2]
[394056581,1763235032224,-250.0,0.00016391,2]
[394056582,1763235032234,-263.284,0.0001644,2]
[394056583,1763235032243,-166.66,0.00016634,2]
[394056584,1763235032253,-151.0,0.00016662,2]
[394056585,1763235032262,-151.0,0.00016662,2]
[394056586,1763235032271,-300.0,0.00016664,2]
[394056587,1763235032281,-300.0,0.00016664,2]
[394056588,1763235032291,-1200.0,0.00016664,2]
[394056589,1763235032300,-163.0,0.00016664,2]
[394056590,1763235032309,-550.0,0.00016664,2]
[394056591,1763235032319,-11929.69087136,0.00016665,2]
[394056592,1763235032330,-7747.96839166,0.00016665,2]
[394056593,1763235032341,-663.77175799,0.00016665,2]
[394056594,1763235032356,-1182.8561798,0.00016665,2]
[394056595,1763235032371,-28879.6721297,0.00016665,2]
[394056596,1763235032381,-6961.3218186,0.00016665,2]
[394056597,1763235032411,-1280.80000001,0.00016665,2]
[394056598,1763235032422,-4944.07886382,0.00016665,2]
[394056599,1763235032502,250.0,0.00041422,120]
[394056600,1763235033114,250.0,0.00041422,120]
[394056601,1763235034017,250.0,0.00041422,120]
[394056602,1763235034322,250.0,0.00041422,120]
[394056603,1763235034931,250.0,0.00041422,120]
[394056604,1763235035531,250.0,0.00041422,120]
[394056605,1763235036121,250.0,0.00041422,120]
[394056606,1763235036716,250.0,0.00041422,120]
[394056607,1763235037312,250.0,0.00041422,120]
[394056608,1763235037937,250.0,0.00041422,120]
[394056613,1763235038541,250.0,0.00041422,120]
[394056614,1763235039241,250.0,0.00041422,120]
[394056615,1763235039774,250.0,0.00041422,120]
[394056618,1763235040161,-167.91095894,0.00016664,2]
[394056619,1763235040171,-215.03821414,0.00016664,2]
[394056620,1763235040184,-284.96178586,0.00016664,2]
[394056621,1763235040193,-332.17230965,0.00016664,2]
[394056622,1763235040203,-500.0,0.00016664,2]
[394056623,1763235040212,-177.54630722,0.00016664,2]
[394056624,1763235040221,-215.89387274,0.00016664,2]
[394056625,1763235040230,-405.03013903,0.00016664,2]
[394056626,1763235040249,-94.96986097,0.00016664,2]
[394056627,1763235040258,-500.0,0.00016664,2]
[394056628,1763235040267,-230.63398895,0.00016664,2]
[394056629,1763235040277,-500.0,0.00016664,2]
[394056630,1763235040286,-364.99745327,0.00016664,2]
[394056631,1763235040295,-500.0,0.00016664,2]
[394056632,1763235040304,-500.0,0.00016664,2]
[394056633,1763235040313,-500.0,0.00016664,2]
[394056634,1763235040323,-500.0,0.00016664,2]
[394056635,1763235040333,-500.0,0.00016664,2]
[394056636,1763235040342,-439.64572228,0.00016664,2]
[394056637,1763235040351,-33.20623199,0.00016664,2]
[394056638,1763235040362,-466.79376801,0.00016664,2]
[394056639,1763235040371,-49.82141265,0.00016664,2]
[394056640,1763235040382,-450.17858735,0.00016664,2]
[394056641,1763235040391,-500.0,0.00016664,2]
[394056642,1763235040401,-500.0,0.00016664,2]
[394056643,1763235040410,-151.87186266,0.00016664,2]
[394056644,1763235040421,-348.12813734,0.00016664,2]
[394056645,1763235040430,-500.0,0.00016664,2]
[394056646,1763235040439,-500.0,0.00016664,2]
[394056647,1763235040448,-94.07186266,0.00016664,2]
[394056648,1763235040459,-405.92813734,0.00016664,2]
[394056649,1763235040469,-500.0,0.00016664,2]
[394056650,1763235040478,-500.0,0.00016664,2]
[394056651,1763235040487,-500.0,0.00016664,2]
[394056652,1763235040497,-500.0,0.00016664,2]
[394056653,1763235040506,-500.0,0.00016664,2]
[394056654,1763235040515,-500.0,0.00016664,2]
[394056655,1763235040525,-500.0,0.00016664,2]
[394056656,1763235040534,-500.0,0.00016664,2]
[394056657,1763235040543,-49.15885506,0.00016664,2]
[394056658,1763235040596,250.0,0.00041422,120]
[394056659,1763235040975,250.0,0.00041422,120]
[394056660,1763235041582,250.0,0.00041422,120]
[394056661,1763235042188,250.0,0.00041422,120]
[394056676,1763235043550,-450.84114494,0.00016664,2]
[394056677,1763235043559,-500.0,0.00016664,2]
[394056678,1763235043568,-500.0,0.00016664,2]
[394056679,1763235043578,-500.0,0.00016664,2]
[394056680,1763235043588,-500.0,0.00016664,2]
[394056681,1763235043597,-500.0,0.00016664,2]
[394056682,1763235043606,-250.43885508,0.00016664,2]
[394056683,1763235043617,-249.56114492,0.00016664,2]